bitfinex-derivatives/quotes_BTCF0:USTF0_20251025
["timestamp","ask_amount","ask_price","bid_price","bid_amount"]
[1761388126113,0.50737555,111630.0,111620.0,0.02208]
[1761388126501,0.1473378,111610.0,111600.0,0.02198]
[1761388126697,0.16925772,111610.0,111600.0,0.18634847]
[1761388127205,0.16925772,111610.0,111600.0,0.0231]
[1761388127707,0.0895959,111600.0,111590.0,0.04508]
[1761388127899,0.16925281,111600.0,111590.0,0.04508]
[1761388129714,0.16925281,111600.0,111590.0,0.04908]
[1761388131403,0.1473459,111600.0,111590.0,0.04908]
[1761388150921,0.1473459,111600.0,111590.0,0.19034847]
[1761388153327,0.16926618,111600.0,111590.0,0.19034847]
[1761388158320,0.15634618,111600.0,111590.0,0.19328847]
[1761388158521,0.13365618,111600.0,111590.0,0.59713237]
[1761388158724,0.13474618,111600.0,111590.0,0.59713237]
[1761388158937,0.15601618,111600.0,111590.0,0.59713237]
[1761388162329,0.13474618,111600.0,111590.0,0.59713237]
[1761388162537,0.0445,111600.0,111590.0,0.59713237]
[1761388163438,0.1340959,111600.0,111590.0,0.59713237]
[1761388164533,0.1469259,111600.0,111590.0,0.4529239]
[1761388164738,0.1469259,111600.0,111590.0,0.59419237]
[1761388166025,0.1469259,111600.0,111590.0,0.27995237]
[1761388166225,0.16886628,111600.0,111590.0,0.1386839]
[1761388166438,0.16886628,111600.0,111590.0,0.36332]
[1761388167334,0.16886628,111600.0,111590.0,0.50458847]
[1761388169048,0.16886628,111600.0,111590.0,0.36332]
[1761388171238,0.16886628,111600.0,111590.0,0.04908]
[1761388172842,0.16886628,111600.0,111590.0,0.20813204]
[1761388187544,0.32791832,111600.0,111590.0,0.004]
[1761388187854,0.1490539,111590.0,111580.0,0.21244657]
[1761388188053,0.33004632,111590.0,111580.0,0.05339453]
[1761388188751,0.17099428,111590.0,111580.0,0.21244657]
[1761388189255,0.17099428,111590.0,111580.0,0.21644657]
[1761388189752,0.33004632,111590.0,111580.0,0.21644657]
[1761388190253,0.17099428,111590.0,111580.0,0.21644657]
[1761388190753,0.33004632,111590.0,111580.0,0.21644657]
[1761388191141,0.17099428,111590.0,111580.0,0.21644657]
[1761388191558,0.33004632,111590.0,111580.0,0.04845]
[1761388191758,0.33004632,111590.0,111580.0,0.20750204]
[1761388192756,0.33004632,111590.0,111580.0,0.18460204]
[1761388193160,0.33004632,111590.0,111580.0,0.02555]
[1761388194553,0.1490619,111580.0,111570.0,0.21264212]
[1761388194748,0.62239394,111580.0,111570.0,0.05359008]
[1761388194953,0.4633419,111580.0,111570.0,0.21264212]
[1761388195950,0.4633419,111580.0,111570.0,0.21664212]
[1761388196754,0.4633419,111580.0,111570.0,0.21764212]
[1761388199666,0.62239394,111580.0,111570.0,0.19474212]
[1761388200259,0.62239394,111580.0,111570.0,0.03569008]
[1761388200464,0.64430975,111580.0,111570.0,0.19474212]
[1761388201559,0.64430975,111580.0,111570.0,0.03569008]
[1761388201560,0.62239394,111580.0,111570.0,0.03569008]
[1761388201866,0.62239394,111580.0,111570.0,0.19474212]
[1761388202764,0.62239394,111580.0,111570.0,0.02655]
[1761388202968,0.14755,111570.0,111560.0,0.20275204]
[1761388204573,0.14755,111570.0,111560.0,0.20375204]
[1761388205063,0.14755,111570.0,111560.0,0.20675204]
[1761388206469,0.14755,111570.0,111560.0,0.21587827]
[1761388207373,0.14755,111570.0,111560.0,0.05682623]
[1761388207669,0.14755,111570.0,111560.0,0.21587827]
[1761388207670,0.30660204,111570.0,111560.0,0.21587827]
[1761388208164,0.14755,111570.0,111560.0,0.21587827]
[1761388209871,0.16944688,111570.0,111560.0,0.21587827]
[1761388211267,0.16944688,111570.0,111560.0,0.00245525]
[1761388211268,0.48755096,111570.0,111560.0,0.00245525]
[1761388211575,0.51755096,111570.0,111560.0,0.00245525]
[1761388211971,1.02755096,111570.0,111560.0,0.00245525]
[1761388213169,1.02755096,111570.0,111540.0,0.20281725]
[1761388213170,0.147566,111550.0,111540.0,0.20281725]
[1761388213671,0.30661804,111550.0,111540.0,0.20281725]
[1761388214470,0.30661804,111550.0,111540.0,0.2117636]
[1761388215271,0.31161804,111550.0,111540.0,0.2117636]
[1761388215458,0.31161804,111550.0,111540.0,0.05271156]
[1761388216173,0.152566,111550.0,111540.0,0.05271156]
[1761388216375,0.31161804,111550.0,111540.0,0.05271156]
[1761388216873,0.31161804,111550.0,111540.0,0.2117636]
[1761388217271,0.31161804,111550.0,111540.0,0.05271156]
[1761388218170,0.31161804,111550.0,111540.0,0.04376521]
[1761388223977,0.31161804,111550.0,111540.0,0.02211521]
[1761388224279,0.33348795,111550.0,111540.0,6.521e-05]
[1761388224668,0.33348795,111550.0,111540.0,0.02211521]
[1761388227382,0.33348795,111550.0,111540.0,0.04376521]
[1761388229088,0.33348795,111550.0,111540.0,0.20281725]
[1761388229089,0.17443591,111550.0,111540.0,0.20281725]
[1761388229484,0.33348795,111550.0,111540.0,0.20281725]
[1761388230683,0.33348795,111550.0,111540.0,0.04376521]
[1761388230883,0.33348795,111550.0,111540.0,0.20281725]
[1761388231083,0.33348795,111550.0,111540.0,0.04376521]
[1761388233188,0.33357218,111550.0,111540.0,0.04376521]
[1761388234285,0.33357218,111550.0,111540.0,0.02211521]
[1761388234786,0.31606343,111550.0,111540.0,0.02211521]
[1761388234985,0.31606343,111550.0,111540.0,6.521e-05]
[1761388238487,0.93017444,111550.0,111540.0,6.521e-05]
[1761388238692,0.0896682,111510.0,111500.0,0.34638638]
[1761388238893,0.1335082,111510.0,111500.0,0.34638638]
[1761388239591,0.13358952,111510.0,111500.0,0.28198399]
[1761388240692,0.04392132,111510.0,111500.0,0.28298399]
[1761388240997,0.04392132,111510.0,111500.0,0.29196443]
[1761388242393,0.04392132,111510.0,111500.0,0.60636443]
[1761388243894,0.04392132,111510.0,111500.0,1.20636443]
[1761388244398,0.05712132,111510.0,111500.0,0.59885443]
[1761388244791,0.04392132,111510.0,111500.0,0.59885443]
[1761388244997,0.04392132,111510.0,111500.0,0.60636443]
[1761388245798,0.04392132,111510.0,111500.0,0.29196443]
[1761388245996,0.04392132,111510.0,111500.0,0.60640443]
[1761388248497,0.02159132,111510.0,111500.0,0.60640443]
[1761388248803,8.132e-05,111510.0,111500.0,0.60640443]
[1761388251001,0.02159132,111510.0,111500.0,0.60640443]
[1761388251498,0.02159132,111510.0,111500.0,0.29196443]
[1761388251802,0.04392132,111510.0,111500.0,0.60640443]
[1761388252005,0.02159132,111510.0,111500.0,0.60640443]
[1761388252201,8.132e-05,111510.0,111500.0,0.60640443]
[1761388254201,8.132e-05,111510.0,111500.0,0.29196443]
[1761388254501,8.132e-05,111510.0,111500.0,0.60640443]
[1761388254701,0.04392132,111510.0,111500.0,0.60640443]
[1761388255005,0.04392132,111510.0,111500.0,0.67080682]
[1761388256500,0.04392132,111510.0,111500.0,1.27080682]
[1761388256697,0.04392132,111510.0,111500.0,0.29196443]
[1761388256898,0.04392132,111510.0,111500.0,0.60640443]
[1761388257098,0.05712132,111510.0,111500.0,0.60640443]
[1761388257300,0.14678952,111510.0,111500.0,0.60640443]
[1761388260109,0.13358952,111510.0,111500.0,0.60640443]
[1761388260406,0.02159132,111510.0,111500.0,0.60640443]
[1761388260606,0.11125952,111510.0,111500.0,0.60640443]
[1761388261008,8.132e-05,111510.0,111500.0,0.60640443]
[1761388261711,0.02117132,111510.0,111500.0,0.60640443]
[1761388262806,8.132e-05,111510.0,111500.0,0.60640443]
[1761388263007,8.132e-05,111510.0,111500.0,0.29196443]
[1761388263211,8.132e-05,111510.0,111500.0,0.60640443]
[1761388264104,8.132e-05,111510.0,111500.0,0.67080682]
[1761388265612,8.132e-05,111510.0,111500.0,1.27080682]
[1761388265915,0.04370132,111510.0,111500.0,1.27080682]
[1761388266214,8.132e-05,111510.0,111500.0,1.27080682]
[1761388266815,8.132e-05,111510.0,111500.0,0.67080682]
[1761388267316,8.132e-05,111510.0,111500.0,0.81750682]
[1761388268809,0.04370132,111510.0,111500.0,1.41750682]
[1761388269320,0.02265132,111510.0,111500.0,1.41750682]
[1761388269818,0.02265132,111510.0,111500.0,1.10306682]
[1761388270018,0.02265132,111510.0,111500.0,1.41750682]
[1761388270521,0.02265132,111510.0,111500.0,1.10306682]
[1761388270819,0.02265132,111510.0,111500.0,1.35310443]
[1761388271118,0.02265132,111510.0,111500.0,1.03866443]
[1761388271321,0.02265132,111510.0,111500.0,1.35310443]
[1761388271823,0.02265132,111510.0,111500.0,1.41767526]
[1761388272721,0.02265132,111510.0,111500.0,1.10323526]
[1761388272922,0.02265132,111510.0,111500.0,1.41767526]
[1761388275020,8.132e-05,111510.0,111500.0,1.10323526]
[1761388275225,8.132e-05,111510.0,111500.0,1.41767526]
[1761388276827,8.132e-05,111510.0,111500.0,0.81767526]
[1761388278722,0.04370132,111510.0,111500.0,1.10323526]
[1761388278927,0.04370132,111510.0,111500.0,1.41767526]
[1761388281030,0.04374132,111510.0,111500.0,1.41767526]
[1761388282128,0.04374132,111510.0,111500.0,1.10323526]
[1761388282329,0.04374132,111510.0,111500.0,1.41767526]
[1761388285343,0.02269132,111510.0,111500.0,1.41767526]
[1761388285643,0.13340952,111510.0,111500.0,1.10323526]
[1761388285843,0.04374132,111510.0,111500.0,1.41767526]
[1761388287335,0.00012132,111510.0,111500.0,1.41767526]
[1761388287643,0.1028475,111540.0,111520.0,0.1408902]
[1761388287945,0.15521939,111540.0,111530.0,0.51268329]
[1761388288841,0.15521939,111540.0,111530.0,0.60233539]
[1761388289041,0.15521599,111540.0,111530.0,0.60233539]
[1761388289739,0.15821599,111540.0,111530.0,0.60233539]
[1761388291043,0.15821599,111540.0,111530.0,0.74903539]
[1761388291244,0.1362641,111540.0,111530.0,0.74903539]
[1761388293346,0.1362641,111540.0,111530.0,0.81993314]
[1761388294642,0.1362641,111540.0,111530.0,0.83759701]
[1761388297049,0.1363041,111540.0,111530.0,0.83759701]
[1761388298853,0.04666,111540.0,111530.0,0.83759701]
[1761388299054,0.00304,111540.0,111530.0,0.83759701]
[1761388299352,0.1494341,111540.0,111530.0,0.82465701]
[1761388300657,0.1494341,111540.0,111530.0,0.73500491]
[1761388300853,0.30864126,111540.0,111530.0,0.19042]
[1761388301047,0.30864126,111540.0,111530.0,0.5049]
[1761388302154,0.1494341,111540.0,111530.0,0.66410716]
[1761388302351,0.30864126,111540.0,111530.0,0.66410716]
[1761388302551,0.1494341,111540.0,111530.0,0.66410716]
[1761388303055,0.1494341,111540.0,111530.0,0.51740716]
[1761388303256,0.30864126,111540.0,111530.0,0.51740716]
[1761388305456,0.30864126,111540.0,111530.0,0.60705926]
[1761388305658,0.30864126,111540.0,111530.0,0.51744716]
[1761388308060,0.30864126,111540.0,111530.0,0.51740716]
[1761388308656,0.30864126,111540.0,111530.0,0.20292716]
[1761388308853,0.30864126,111540.0,111530.0,0.51740716]
[1761388309054,0.30864126,111540.0,111530.0,0.20292716]
[1761388309255,0.30864126,111540.0,111530.0,0.3582]
[1761388310352,0.30864126,111540.0,111530.0,0.51740716]
[1761388313153,0.3304995,111540.0,111530.0,0.51740716]
[1761388314263,0.30864126,111540.0,111530.0,0.51740716]
[1761388315163,0.33050712,111540.0,111530.0,0.51740716]
[1761388315662,0.33050712,111540.0,111530.0,0.60701926]
[1761388316459,0.17129996,111540.0,111530.0,0.60701926]
[1761388318567,0.33050712,111540.0,111530.0,0.20292716]
[1761388318765,0.33050712,111540.0,111530.0,0.51736716]
[1761388320871,0.30864126,111540.0,111530.0,0.51736716]
[1761388321067,0.33053933,111540.0,111530.0,0.51736716]
[1761388322361,0.17133217,111540.0,111530.0,0.51736716]
[1761388322665,0.33053933,111540.0,111530.0,0.51736716]
[1761388326867,0.33053933,111540.0,111530.0,0.20292716]
[1761388327068,0.33053933,111540.0,111530.0,0.51732716]
[1761388327368,0.33053933,111540.0,111530.0,0.20292716]
[1761388328069,0.33053933,111540.0,111530.0,0.04372]
[1761388337781,0.1462121,111530.0,111520.0,0.04526]
[1761388337972,0.32730296,111530.0,111520.0,0.04526]
[1761388338172,0.32730327,111530.0,111520.0,0.04526]
[1761388338578,0.32730327,111530.0,111520.0,0.02249]
[1761388338779,0.32730327,111530.0,111510.0,0.3597]
[1761388338780,0.1462202,111520.0,111510.0,0.3597]
[1761388338982,0.30542736,111520.0,111510.0,0.51890716]
[1761388339580,0.1462202,111520.0,111510.0,0.51890716]
[1761388341786,0.1482202,111520.0,111510.0,0.51890716]
[1761388345792,0.1482202,111520.0,111510.0,0.3597]
[1761388345993,0.1482202,111520.0,111510.0,0.51890716]
[1761388352404,0.1355202,111520.0,111510.0,0.53188716]
[1761388353106,0.1144702,111520.0,111510.0,0.62155536]
[1761388353294,0.1144702,111520.0,111510.0,0.53188716]
[1761388353801,0.1369702,111520.0,111510.0,0.53188716]
[1761388356205,0.1144702,111520.0,111510.0,0.78076252]
[1761388356405,0.0916602,111520.0,111510.0,0.84533085]
[1761388356808,0.0916602,111520.0,111510.0,0.66846563]
[1761388357003,0.1134802,111520.0,111510.0,0.66846563]
[1761388360508,0.1359802,111520.0,111510.0,0.66846563]
[1761388362402,0.04632,111520.0,111510.0,0.7505973]
[1761388362606,0.002,111520.0,111510.0,0.7505973]
[1761388366111,0.02382,111520.0,111510.0,0.7505973]
[1761388367406,0.04632,111520.0,111510.0,0.7505973]
[1761388368513,0.002,111520.0,111510.0,0.7505973]
[1761388371509,0.002,111520.0,111510.0,0.81516563]
[1761388381819,0.002,111520.0,111510.0,1.41516563]
[1761388382615,0.00068048,111520.0,111510.0,1.41516563]
[1761388382817,0.01395,111540.0,111530.0,0.1466521]
[1761388382818,4e-05,111540.0,111530.0,0.1466521]
[1761388383117,0.02221,111540.0,111530.0,0.6026412]
[1761388383319,0.04395,111540.0,111530.0,0.6026412]
[1761388384613,0.04695,111540.0,111530.0,0.6026412]
[1761388385819,0.04695,111540.0,111530.0,0.67295095]
[1761388386320,0.04695,111540.0,111530.0,0.81965095]
[1761388395525,0.04695,111540.0,111530.0,0.81961095]
[1761388395725,0.04695,111540.0,111530.0,0.50521095]
[1761388395925,0.04695,111540.0,111530.0,0.81961095]
[1761388399234,0.00304,111540.0,111530.0,0.81961095]
[1761388399830,0.1256491,111560.0,111550.0,0.089636]
[1761388400033,0.06574828,111560.0,111550.0,0.6027651]
[1761388400533,0.04391,111560.0,111550.0,0.6027651]
[1761388400923,0.04491,111560.0,111550.0,0.6027651]
[1761388401127,0.05091,111560.0,111550.0,0.6027651]
[1761388403129,0.007,111560.0,111550.0,0.7443142]
[1761388403324,0.007,111560.0,111550.0,0.6027651]
[1761388406633,0.12631742,111590.0,111570.0,0.0896169]
[1761388406833,0.19203031,111590.0,111580.0,0.5001091]
[1761388407736,0.19303031,111590.0,111580.0,0.5001091]
[1761388408236,0.16893239,111590.0,111580.0,0.5001091]
[1761388408432,0.07932289,111590.0,111580.0,0.5972311]
[1761388408637,0.02280289,111590.0,111580.0,0.5972311]
[1761388408828,0.008,111590.0,111580.0,0.5972311]
[1761388409431,0.05652,111600.0,111590.0,0.133804]
[1761388409634,0.07821894,111600.0,111590.0,0.2753531]
[1761388410439,0.07821894,111600.0,111590.0,0.2883331]
[1761388410636,0.08521894,111600.0,111590.0,0.2883331]
[1761388410836,0.07260894,111600.0,111590.0,0.2883331]
[1761388411033,0.05091,111600.0,111590.0,0.2883331]
[1761388412633,0.1543659,111600.0,111590.0,0.06631374]
[1761388412839,0.1543659,111600.0,111590.0,0.20786284]
[1761388413135,0.1543659,111600.0,111590.0,0.03223374]
[1761388413136,0.17604315,111600.0,111590.0,0.03223374]
[1761388413335,0.17604315,111600.0,111590.0,0.32385374]
[1761388413534,0.17604315,111600.0,111590.0,0.34530374]
[1761388413739,0.17604315,111600.0,111590.0,0.36760374]
[1761388418033,0.1543659,111600.0,111590.0,0.36760374]
[1761388418349,0.17602622,111600.0,111590.0,0.36760374]
[1761388418739,0.17602622,111600.0,111590.0,0.52666092]
[1761388419345,0.17602622,111600.0,111590.0,0.21194092]
[1761388419646,0.17602622,111600.0,111590.0,0.52658092]
[1761388426149,0.3350834,111600.0,111590.0,0.00913374]
[1761388426341,0.3350834,111600.0,111580.0,0.33605]
[1761388426342,0.125414,111590.0,111580.0,0.33605]
[1761388426542,0.32867332,111590.0,111580.0,0.20280718]
[1761388426757,0.32867332,111590.0,111580.0,0.04375]
[1761388426945,0.32867332,111590.0,111580.0,0.20280718]
[1761388427145,0.16961614,111590.0,111580.0,0.20280718]
[1761388428051,0.17561614,111590.0,111580.0,0.21179386]
[1761388432361,0.19971406,111590.0,111580.0,0.21179386]
[1761388433558,0.18585406,111590.0,111580.0,0.22477386]
[1761388435958,0.16334406,111590.0,111580.0,0.22477386]
[1761388436162,0.13924614,111590.0,111580.0,0.22477386]
[1761388436659,0.16175614,111590.0,111580.0,0.31438586]
[1761388440857,0.13924614,111590.0,111580.0,0.31438586]
[1761388441457,0.02409792,111600.0,111590.0,0.1420539]
[1761388441647,0.06739792,111620.0,111610.0,0.05303]
[1761388441958,0.06739792,111620.0,111610.0,0.52700718]
[1761388442551,0.06739792,111620.0,111610.0,0.61659508]
[1761388442958,0.0433,111620.0,111610.0,0.61659508]
[1761388443160,0.02191,111620.0,111610.0,0.61659508]
[1761388443347,0.04353,111620.0,111610.0,0.61659508]
[1761388444556,0.04353,111620.0,111610.0,0.61959508]
[1761388445757,0.08171792,111630.0,111610.0,0.4605379]
[1761388445963,0.08171792,111630.0,111610.0,0.4605372]
[1761388445964,0.06785792,111620.0,111610.0,0.4605372]
[1761388447061,0.06785792,111620.0,111610.0,0.70369678]
[1761388447462,0.06785792,111620.0,111610.0,0.70269678]
[1761388448067,0.06785792,111620.0,111610.0,0.70469678]
[1761388450268,0.08049792,111620.0,111610.0,0.70469678]
[1761388451063,0.08049792,111620.0,111610.0,0.60701958]
[1761388451374,0.08049792,111620.0,111610.0,0.69660748]
[1761388452066,0.2395551,111620.0,111610.0,0.1330424]
[1761388452269,0.2395551,111620.0,111610.0,0.69652748]
[1761388452565,0.08049792,111620.0,111610.0,0.69652748]
[1761388453467,0.10222596,111620.0,111610.0,0.69652748]
[1761388454965,0.10222596,111620.0,111610.0,0.4478824]
[1761388455269,0.10222596,111620.0,111610.0,0.6069227]
[1761388455971,0.0564,111620.0,111610.0,0.6069227]
[1761388459769,0.0564,111620.0,111610.0,0.44786552]
[1761388460070,0.0564,111620.0,111610.0,0.6069227]
[1761388463471,0.07813949,111620.0,111610.0,0.6069227]
[1761388465971,0.07813949,111620.0,111610.0,0.6965106]
[1761388469473,0.07813949,111620.0,111610.0,0.6069227]
[1761388470880,0.07813949,111620.0,111610.0,0.60696349]
[1761388472180,0.10223741,111620.0,111610.0,0.60696349]
[1761388476083,0.10223741,111620.0,111610.0,0.65527051]
[1761388478182,0.07813949,111620.0,111610.0,0.60696349]
[1761388478576,0.07813949,111620.0,111610.0,0.22101859]
[1761388478577,0.23719667,111620.0,111610.0,0.22101859]
[1761388478781,0.26129459,111620.0,111610.0,0.06196141]
[1761388478981,0.26129459,111620.0,111610.0,0.22101859]
[1761388480690,0.10223741,111620.0,111610.0,0.06196141]
[1761388481081,0.24358322,111620.0,111610.0,0.06196141]
[1761388481278,0.84358322,111620.0,111610.0,0.01702141]
[1761388481485,0.85162179,111620.0,111610.0,0.01702141]
[1761388482292,0.85162179,111620.0,111610.0,0.03895141]
[1761388483290,0.85162179,111620.0,111610.0,0.03595141]
[1761388484205,0.8757415,111620.0,111610.0,0.03595141]
[1761388486187,0.84360501,111620.0,111610.0,0.03595141]
[1761388487293,0.84360501,111620.0,111610.0,0.03615136]
[1761388488192,0.85162179,111620.0,111610.0,0.01422136]
[1761388488396,0.91162179,111620.0,111610.0,0.01422136]
[1761388489298,0.93572017,111620.0,111610.0,0.01422136]
[1761388492100,0.93572017,111620.0,111610.0,0.01421166]
[1761388493402,0.93572017,111620.0,111610.0,0.03614166]
[1761388493601,0.93572017,111620.0,111610.0,0.05919166]
[1761388494901,0.79437436,111620.0,111610.0,0.05919166]
[1761388495097,0.93572017,111620.0,111610.0,0.05919166]
[1761388495399,0.90358368,111620.0,111610.0,0.05919166]
[1761388496002,0.91162179,111620.0,111610.0,0.05919166]
[1761388497404,0.85162179,111620.0,111610.0,0.05919166]
[1761388497591,0.71027598,111620.0,111610.0,0.05919166]
[1761388499600,0.85162179,111620.0,111610.0,0.05919166]
[1761388500604,1.16618179,111620.0,111610.0,0.05919166]
[1761388500804,1.15815455,111620.0,111610.0,0.05919166]
[1761388501000,1.01680874,111620.0,111610.0,0.05919166]
[1761388501806,1.15815455,111620.0,111610.0,0.05919166]
[1761388502305,1.19029104,111620.0,111610.0,0.01421166]
[1761388502701,0.60029104,111620.0,111610.0,0.01421166]
[1761388503297,0.57618179,111620.0,111610.0,0.01421166]
[1761388503792,0.56618179,111620.0,111610.0,0.01421166]
[1761388505701,0.59618179,111620.0,111610.0,0.01421166]
[1761388506095,0.58816637,111620.0,111610.0,0.01421166]
[1761388506299,0.58816637,111620.0,111610.0,0.01421521]
[1761388507708,1.18816637,111620.0,111610.0,0.01421521]
[1761388508208,1.22030286,111620.0,111610.0,0.01421521]
[1761388510211,1.19618179,111620.0,111610.0,0.01421521]
[1761388512612,1.24438652,111620.0,111610.0,0.01421521]
[1761388516820,0.64438652,111620.0,111610.0,0.01421521]
[1761388517118,0.64438652,111620.0,111610.0,0.05811521]
[1761388517418,0.59618179,111620.0,111610.0,0.05811521]
[1761388519721,0.59618179,111620.0,111610.0,0.03596521]
[1761388520321,0.59618179,111620.0,111610.0,0.01421521]
[1761388522132,1.19618179,111620.0,111610.0,0.01421521]
[1761388527434,1.24438652,111620.0,111610.0,0.01421521]
[1761388531336,1.24438652,111620.0,111610.0,0.03596521]
[1761388532137,0.64438652,111620.0,111610.0,0.03596521]
[1761388533542,0.61225003,111620.0,111610.0,0.03596521]
[1761388534542,0.61225003,111620.0,111610.0,0.01421521]
[1761388536333,0.64451252,111620.0,111610.0,0.01421521]
[1761388537139,1.24451252,111620.0,111610.0,0.01421521]
[1761388540142,1.24451252,111620.0,111610.0,0.05746521]
[1761388541634,1.24451252,111620.0,111610.0,0.01421521]
[1761388541834,0.05924,111590.0,111580.0,0.04325]
[1761388542038,0.56088065,111590.0,111580.0,0.04325]
[1761388542338,0.56088065,111590.0,111580.0,0.19731581]
[1761388542339,0.38231949,111590.0,111580.0,0.19731581]
[1761388542730,0.38231949,111590.0,111580.0,0.22406194]
[1761388543441,0.38231949,111590.0,111580.0,0.23006194]
[1761388544547,0.06783949,111590.0,111580.0,0.23006194]
[1761388547438,0.06783949,111590.0,111580.0,0.83006194]
[1761388551352,0.02173949,111590.0,111580.0,0.23006194]
[1761388551551,0.39791535,111600.0,111590.0,0.05609]
[1761388551855,0.57873885,111600.0,111590.0,0.05609]
[1761388552952,0.57873885,111600.0,111590.0,0.06009]
[1761388553850,0.26425885,111600.0,111590.0,0.06009]
[1761388556654,0.10519315,111600.0,111590.0,0.2191557]
[1761388556852,0.26425885,111600.0,111590.0,0.06009]
[1761388557653,0.10519315,111600.0,111590.0,0.2191557]
[1761388558554,0.0678578,111600.0,111590.0,0.2191557]
[1761388559762,0.0217578,111600.0,111590.0,0.4678253]
[1761388560053,0.05839,111620.0,111610.0,0.1409679]
[1761388560252,0.04575,111620.0,111610.0,0.3000336]
[1761388563358,0.04575,111620.0,111610.0,0.3040336]
[1761388564162,0.02325,111620.0,111610.0,0.3040336]
[1761388564557,0.02325,111620.0,111610.0,0.37634233]
[1761388568462,0.04611,111620.0,111610.0,0.37634233]
[1761388572365,0.04611,111620.0,111610.0,0.97634233]
[1761388575974,0.05743,111630.0,111620.0,0.1481198]
[1761388576168,0.07890422,111630.0,111620.0,0.3071855]
[1761388577868,0.07890422,111630.0,111620.0,0.6216655]
[1761388578058,0.07890422,111630.0,111620.0,0.6236655]
[1761388579472,0.04429,111630.0,111620.0,0.6236655]
[1761388584274,0.02143,111630.0,111620.0,0.6236655]
[1761388584774,0.04429,111630.0,111620.0,0.6236655]
[1761388585373,0.06579859,111630.0,111620.0,0.6236655]
[1761388588169,0.08999394,111630.0,111620.0,0.6236655]
[1761388595284,0.08999394,111630.0,111620.0,0.4645998]
[1761388595584,0.08999394,111630.0,111620.0,0.6236655]
[1761388596084,0.06579859,111630.0,111620.0,0.6236655]
[1761388600682,0.02150859,111630.0,111620.0,0.7827312]
[1761388602689,0.02150859,111630.0,111620.0,0.60585945]
[1761388606191,0.02150859,111630.0,111620.0,0.65414424]
[1761388606490,0.02150859,111630.0,111620.0,0.60585945]
[1761388607097,0.02150859,111630.0,111620.0,0.65414424]
[1761388612895,0.02423535,111640.0,111620.0,1.34372404]
[1761388613099,0.06720535,111640.0,111630.0,0.19819965]
[1761388614504,0.06720535,111640.0,111630.0,0.28777145]
[1761388618618,0.04301,111640.0,111630.0,0.28777145]
[1761388625023,0.06454682,111640.0,111630.0,0.28777145]
[1761388625318,0.02157682,111640.0,111630.0,0.28777145]
[1761388625521,0.06824535,111650.0,111640.0,0.1421438]
[1761388625711,0.06824535,111650.0,111640.0,0.59768345]
[1761388626122,0.04405,111650.0,111640.0,0.59768345]
[1761388628320,0.04505,111650.0,111640.0,0.60644712]
[1761388633728,0.04505,111650.0,111640.0,0.46518747]
[1761388633920,0.04505,111650.0,111640.0,0.51688332]
[1761388636124,0.06924535,111650.0,111640.0,0.51688332]
[1761388637424,0.09067392,111650.0,111640.0,0.51688332]
[1761388646133,0.06647857,111650.0,111640.0,0.51688332]
[1761388647134,0.09067392,111650.0,111640.0,0.51688332]
[1761388655841,0.02242857,111650.0,111640.0,0.65473191]
[1761388656441,0.04492857,111650.0,111640.0,0.65473191]
[1761388656644,0.06792857,111650.0,111640.0,0.65473191]
[1761388657246,0.06692857,111650.0,111640.0,0.65473191]
[1761388659650,0.04392857,111650.0,111640.0,0.65473191]
[1761388659839,0.02142857,111650.0,111640.0,0.65473191]
[1761388662441,0.04392857,111650.0,111640.0,0.65473191]
[1761388664140,0.04492047,111670.0,111660.0,0.05642]
[1761388664141,0.04669535,111670.0,111660.0,0.05642]
[1761388664339,0.06969535,111670.0,111660.0,0.51191965]
[1761388664642,0.06969535,111670.0,111660.0,0.52947847]
[1761388664842,0.06969535,111670.0,111660.0,0.68829694]
[1761388666742,0.06969535,111670.0,111660.0,0.69029694]
[1761388667047,0.08290535,111670.0,111660.0,0.67757694]
[1761388667247,0.05871,111670.0,111660.0,0.67757694]
[1761388668943,0.0455,111670.0,111660.0,0.69029694]
[1761388669147,0.0225,111670.0,111660.0,0.69029694]
[1761388670547,0.08245535,111680.0,111660.0,0.69029694]
[1761388670746,0.08245535,111680.0,111670.0,0.20251847]
[1761388671942,0.06969535,111680.0,111670.0,0.21535847]
[1761388673242,0.0225,111680.0,111670.0,0.37417694]
[1761388673447,0.0225,111680.0,111670.0,0.21535847]
[1761388674152,0.06963307,111690.0,111680.0,0.05179]
[1761388674341,0.06963307,111690.0,111680.0,0.52480847]
[1761388674543,0.08284307,111690.0,111680.0,0.52480847]
[1761388675951,0.10408609,111690.0,111680.0,0.52480847]
[1761388676154,0.12834372,111690.0,111680.0,0.51671847]
[1761388676555,0.12934372,111690.0,111680.0,0.51671847]
[1761388677447,0.12934372,111690.0,111680.0,0.20251847]
[1761388677651,0.12934372,111690.0,111680.0,0.5259129]
[1761388678252,0.16150082,111690.0,111680.0,0.5259129]
[1761388679662,0.16150082,111690.0,111680.0,0.2117129]
[1761388680663,0.12529082,111690.0,111680.0,0.2198029]
[1761388680955,0.14702082,111690.0,111680.0,0.2198029]
[1761388682258,0.15976082,111690.0,111680.0,0.2117129]
[1761388683358,0.14832082,111690.0,111680.0,0.2198029]
[1761388683558,0.16106082,111690.0,111680.0,0.2198029]
[1761388683759,0.16106082,111690.0,111680.0,0.2117129]
[1761388684154,0.16110082,111690.0,111680.0,0.2117129]
[1761388684355,0.16110082,111690.0,111680.0,0.05289443]
[1761388684558,0.16110082,111690.0,111680.0,0.2117129]
[1761388686160,0.13683247,111690.0,111680.0,0.2117129]
[1761388686770,0.10106247,111690.0,111680.0,0.2198029]
[1761388686965,0.12409247,111690.0,111680.0,0.2198029]
[1761388688763,0.12409247,111690.0,111680.0,0.37862137]
[1761388689872,0.04640537,111690.0,111680.0,0.37862137]
[1761388690170,0.02228302,111690.0,111680.0,0.37862137]
[1761388691271,0.02228302,111690.0,111680.0,0.46815317]
[1761388695164,0.16652898,111710.0,111680.0,1.22697164]
[1761388695165,0.02412235,111710.0,111680.0,1.22697164]
[1761388695375,0.02411369,111720.0,111710.0,0.05658]
[1761388695669,0.05865,111730.0,111710.0,0.77792464]
[1761388695871,0.05865,111730.0,111720.0,0.15881847]
[1761388696058,0.05865,111730.0,111720.0,0.20268847]
[1761388696260,0.05865,111730.0,111720.0,0.36150694]
[1761388697065,0.05865,111730.0,111720.0,0.20268847]
[1761388697267,0.06265,111730.0,111720.0,0.20268847]
[1761388702575,0.06265,111730.0,111720.0,0.04387]
[1761388702969,0.06265,111730.0,111720.0,0.20268847]
[1761388704078,0.66265,111730.0,111720.0,0.20268847]
[1761388704267,0.06265,111730.0,111720.0,0.36150694]
[1761388705977,0.06265,111730.0,111720.0,0.20268847]
[1761388706472,0.004,111730.0,111720.0,0.20268847]
[1761388706675,0.04591,111750.0,111740.0,0.04387]
[1761388706977,0.05865,111750.0,111740.0,0.20268847]
[1761388707372,0.07941959,111750.0,111740.0,0.20268847]
[1761388707772,0.08241959,111750.0,111740.0,0.20268847]
[1761388708570,0.06165,111750.0,111740.0,0.20268847]
[1761388710878,0.06165,111750.0,111740.0,0.21171613]